bitfinex/quotes_SOLUSD_20250621
["timestamp","ask_amount","ask_price","bid_price","bid_amount"]
[1750549474454,16.4039,133.13,133.11,7.51258357]
[1750549474629,41.82,133.12,133.11,7.51258357]
[1750549476325,65.76161387,133.12,133.11,7.51258357]
[1750549476926,75.76161387,133.12,133.11,7.51258357]
[1750549477831,75.76161387,133.12,133.1,7.513148]
[1750549478153,23.94161387,133.11,133.1,7.513148]
[1750549478337,33.94161387,133.11,133.1,7.513148]
[1750549479256,23.94161387,133.11,133.1,7.513148]
[1750549479426,33.94161387,133.11,133.1,7.513148]
[1750549480426,10.0,133.11,133.1,7.513148]
[1750549480626,33.94161387,133.11,133.1,7.513148]
[1750549481321,10.0,133.08,133.05,26.30508227]
[1750549481547,23.94161387,133.06,133.05,26.30508227]
[1750549481848,65.68161387,133.07,133.05,26.30508227]
[1750549482050,33.94161387,133.06,133.05,26.30508227]
[1750549482635,41.74,133.07,133.03,23.94161387]
[1750549482965,51.74,133.07,133.03,23.94161387]
[1750549483139,10.0,133.12,133.06,23.94161387]
[1750549483337,6.0867,133.13,133.1,23.94161387]
[1750549483569,1.5041,133.15,133.1,23.94161387]
[1750549483570,41.7,133.12,133.1,23.94161387]
[1750549483768,38.18161387,133.16,133.11,23.94161387]
[1750549483976,41.72,133.15,133.14,26.0]
[1750549484187,14.24,133.16,133.15,26.0]
[1750549484355,41.7,133.16,133.15,23.94161387]
[1750549484559,41.7,133.16,133.15,31.45194056]
[1750549484765,33.94161387,133.2,133.18,26.0]
[1750549484974,41.7,133.19,133.18,26.0]
[1750549485372,57.79845153,133.19,133.18,26.0]
[1750549485580,10.0,133.18,133.17,26.0]
[1750549485890,10.0,133.16,133.15,52.28614343]
[1750549486074,67.77845153,133.16,133.15,52.28614343]
[1750549486276,67.77845153,133.16,133.15,7.51032669]
[1750549486596,67.77845153,133.16,133.13,7.51145496]
[1750549486798,26.09845153,133.14,133.13,7.51145496]
[1750549487085,41.66,133.14,133.13,7.51145496]
[1750549487663,75.45752404,133.14,133.13,7.51145496]
[1750549488174,41.66,133.14,133.13,7.51145496]
[1750549488484,75.45752404,133.14,133.13,7.51145496]
[1750549488865,75.45752404,133.14,133.12,18.77876165]
[1750549489192,41.66,133.14,133.12,18.77876165]
[1750549489979,65.45752404,133.14,133.12,18.77876165]
[1750549490182,75.45752404,133.14,133.12,18.77876165]
[1750549491206,51.66,133.14,133.12,18.77876165]
[1750549491381,75.45752404,133.14,133.12,18.77876165]
[1750549491588,10.0,133.12,133.11,7.51258357]
[1750549491772,10.0,133.12,133.01,63.90496953]
[1750549491773,10.0,133.1,133.01,63.90496953]
[1750549491967,23.79752404,133.08,133.07,26.0]
[1750549492172,75.39752404,133.09,133.05,23.79752404]
[1750549492471,65.39752404,133.09,133.04,26.0]
[1750549492677,65.39752404,133.09,133.05,23.79752404]
[1750549493208,65.39752404,133.09,133.06,26.30392303]
[1750549493508,41.6,133.09,133.06,26.30392303]
[1750549493714,65.39752404,133.09,133.06,26.30392303]
[1750549494068,41.6,133.09,133.06,26.30392303]
[1750549494499,41.6,133.09,133.06,52.30392303]
[1750549494709,41.6,133.09,133.06,76.10144707]
[1750549494880,41.6,133.09,133.06,52.30392303]
[1750549495977,65.39752404,133.09,133.06,52.30392303]
[1750549496183,10.0,133.05,132.99,23.79752404]
[1750549496412,20.27054886,133.08,132.98,63.91938636]
[1750549496413,41.56,133.04,133.01,23.79752404]
[1750549496702,20.27054886,133.08,133.01,23.79752404]
[1750549496703,41.54,133.03,133.01,23.79752404]
[1750549496915,41.54,133.02,133.01,23.79752404]
[1750549497408,41.54,133.02,133.01,31.31575575]
[1750549497606,41.54,133.02,133.01,7.51823171]
[1750549498213,65.33752404,133.02,133.01,7.51823171]
[1750549498519,65.33752404,133.02,132.99,7.51936235]
[1750549498684,65.33752404,133.02,132.99,26.31776824]
[1750549498685,41.54,133.02,132.99,26.31776824]
[1750549498876,23.79752404,133.01,132.99,26.31776824]
[1750549499075,16.6536,133.04,132.99,50.11529228]
[1750549499302,10.0,133.06,133.04,7.51653638]
[1750549499503,41.5,133.05,133.04,7.51653638]
[1750549499698,41.5,133.05,133.04,26.30787733]
[1750549500702,75.29752404,133.05,133.02,7.51766651]
[1750549500914,10.0,133.01,132.98,7.5199278]
[1750549501075,33.79752404,133.03,132.99,23.79752404]
[1750549501276,10.0,133.03,133.0,31.31632103]
[1750549501481,41.48,133.02,133.0,26.31578947]
[1750549501701,10.0,133.05,133.0,52.31578947]
[1750549501871,23.79752404,133.06,133.0,52.31578947]
[1750549502076,41.48,133.05,133.02,23.79752404]
[1750549502278,6.6536,133.08,133.04,23.79752404]
[1750549502504,41.48,133.07,133.05,23.79752404]
[1750549502704,41.48,133.07,133.04,26.0]
[1750549502881,41.48,133.07,133.05,23.79752404]
[1750549503305,41.48,133.07,133.06,7.51540658]
[1750549503486,41.46,133.07,133.06,31.31293062]
[1750549503918,41.46,133.07,133.06,50.10144707]
[1750549504210,41.46,133.07,133.06,26.30392303]
[1750549504506,41.46,133.07,133.06,50.10144707]
[1750549504714,75.25752404,133.07,133.06,7.51540658]
[1750549505180,51.46,133.07,133.06,7.51540658]
[1750549505502,51.46,133.07,133.05,7.51597143]
[1750549505805,75.25752404,133.07,133.05,7.51597143]
[1750549505994,23.79752404,133.06,133.05,7.51597143]
[1750549506194,10.0,133.1,133.05,26.30590002]
[1750549506399,41.42,133.09,133.07,23.79752404]
[1750549506587,41.42,133.08,133.07,23.79752404]
[1750549507276,41.4,133.08,133.07,26.0]
[1750549507482,41.4,133.08,133.07,33.51484181]
[1750549508015,6.3813,133.12,133.07,76.09947038]
[1750549508194,35.43992404,133.16,133.11,23.79752404]
[1750549508397,11.6424,133.16,133.11,23.79752404]
[1750549508597,41.38,133.15,133.12,23.79752404]
[1750549508792,10.0,133.13,133.1,26.0]
[1750549509111,41.38,133.12,133.11,26.0]
[1750549509608,41.38,133.12,133.11,57.31010761]
[1750549509987,41.38,133.12,133.11,52.29404251]
[1750549512483,41.32,133.12,133.11,76.09156655]
[1750549513008,65.11752404,133.12,133.11,7.51258357]
[1750549513188,51.32,133.12,133.11,7.51258357]
[1750549513389,75.11752404,133.12,133.11,7.51258357]
[1750549513795,51.32,133.12,133.11,7.51258357]
[1750549514003,10.0,133.11,133.08,49.79752404]
[1750549514402,10.0,133.11,133.08,26.0]
[1750549514719,33.79752404,133.11,133.08,26.0]
[1750549515603,10.0,133.11,133.08,26.0]
[1750549516013,33.79752404,133.11,133.09,7.51371252]
[1750549516400,10.0,133.1,133.09,7.51371252]
[1750549517717,10.0,133.11,133.09,7.51371252]
[1750549517919,26.11950041,133.15,133.11,7.51258357]
[1750549518124,41.26,133.14,133.12,16.11950041]
[1750549518424,41.26,133.14,133.12,42.11950041]
[1750549519016,10.0,133.18,133.13,16.11950041]
[1750549519226,41.24,133.17,133.15,16.11950041]
[1750549519394,26.11950041,133.2,133.16,16.11950041]
[1750549519592,40.72454886,133.21,133.15,26.0]
[1750549519593,20.4572,133.21,133.15,26.0]
[1750549519807,23.94,133.21,133.19,16.11950041]
[1750549520013,41.22,133.2,133.19,23.62757158]
[1750549520288,41.22,133.2,133.19,7.50807117]
[1750549520493,41.22,133.2,133.19,23.62757158]
[1750549520918,10.0,133.21,133.19,42.39774952]
[1750549521091,41.22,133.2,133.19,42.39774952]
[1750549522015,41.2,133.2,133.19,42.39774952]
[1750549522893,41.2,133.2,133.19,42.36772931]
[1750549523120,67.2894802,133.2,133.17,26.0]
[1750549523443,67.2894802,133.2,133.06,13.94]
[1750549523444,10.0,133.19,133.14,7.51089079]
[1750549523723,10.0,133.15,133.14,7.51089079]
[1750549523922,51.16,133.15,133.14,7.51089079]
[1750549524629,74.94734725,133.15,133.13,18.77731238]
[1750549524919,51.16,133.15,133.13,18.77731238]
[1750549525123,10.0,133.14,133.13,18.77731238]
[1750549525354,33.78734725,133.14,133.12,7.51201923]
[1750549525629,33.78734725,133.13,133.12,7.51201923]
[1750549526127,10.0,133.12,133.1,7.513148]
[1750549526326,74.92734725,133.11,133.1,7.513148]
[1750549526546,51.14,133.11,133.07,26.30061877]
[1750549526699,74.92734725,133.11,133.07,26.30061877]
[1750549527240,10.0,133.09,133.07,7.51484181]
[1750549527527,51.12,133.08,133.07,7.51484181]
[1750549528406,74.90734725,133.08,133.07,7.51484181]
[1750549528599,74.90734725,133.08,133.03,23.78734725]
[1750549528938,40.00694725,133.13,133.1,26.0]
[1750549529236,41.1,133.12,133.1,26.0]
[1750549529529,10.0,133.1,133.05,26.0]
[1750549529713,41.08,133.09,133.07,23.78734725]
[1750549529906,41.08,133.09,133.05,26.0]
[1750549530221,41.08,133.09,133.07,23.78734725]
[1750549530727,41.08,133.09,133.08,7.51427712]
[1750549531620,74.86734725,133.09,133.08,7.51427712]
[1750549531912,33.78734725,133.09,133.08,7.51427712]
[1750549532120,10.0,133.11,133.08,26.29996993]
[1750549532344,41.06,133.1,133.08,26.29996993]
[1750549532524,51.06,133.1,133.08,26.29996993]
[1750549533201,10.0,133.09,133.08,26.29996993]
[1750549533624,33.78734725,133.09,133.08,7.51427712]
[1750549535908,10.0,133.08,133.06,26.30392303]
[1750549536106,10.0,133.1,133.06,50.09127028]
[1750549536314,10.0,133.08,133.06,50.09127028]
[1750549536510,10.0,133.08,133.06,26.30392303]
[1750549536915,33.78734725,133.07,133.06,26.30392303]
[1750549537121,10.0,133.07,133.06,26.30392303]
[1750549537430,10.0,133.07,133.06,7.51540658]
[1750549537735,10.0,133.07,133.03,80.16144967]
[1750549537736,10.0,133.05,133.04,7.51653638]
[1750549537912,10.0,133.05,133.03,18.79141381]
[1750549537913,40.98,133.05,133.03,23.78734725]
[1750549538532,40.98,133.05,133.04,23.78734725]
[1750549538733,40.98,133.05,133.02,26.0]
[1750549539027,40.98,133.05,133.01,23.78734725]
[1750549539330,40.98,133.05,133.03,26.0]
[1750549539532,40.98,133.05,132.99,63.91458003]
[1750549539533,10.0,133.02,132.99,26.31776824]
[1750549539719,40.96,133.01,132.99,76.10511549]
[1750549539920,10.0,133.04,133.03,7.5171014]
[1750549540115,40.96,133.04,133.03,7.5171014]
[1750549541005,50.96,133.04,133.03,7.5171014]
[1750549541206,40.96,133.04,133.03,7.5171014]
[1750549541811,40.96,133.04,133.03,50.09720216]
[1750549542641,6.3991,133.09,133.03,68.74685102]
[1750549542945,6.3991,133.09,133.06,26.0]
[1750549542946,40.92,133.08,133.06,26.0]
[1750549543310,50.92,133.08,133.06,26.0]
[1750549543606,50.92,133.08,133.04,16.12404382]
[1750549543812,10.0,133.06,133.05,7.51597143]
[1750549544246,10.0,133.07,133.05,7.51597143]
[1750549544425,10.0,133.06,133.05,7.51597143]
[1750549546843,50.92,133.08,133.05,42.42994384]
[1750549547140,40.92,133.08,133.07,26.0]
[1750549547440,50.92,133.08,133.07,42.12404382]
[1750549547645,40.92,133.08,133.07,42.12404382]
[1750549548014,40.92,133.08,133.07,49.63888563]
[1750549549058,10.0,133.13,133.08,18.64964886]
[1750549549217,10.0,133.12,133.1,26.0]
[1750549549415,10.0,133.15,133.11,16.12404382]
[1750549549731,40.82,133.14,133.12,16.12404382]
[1750549550040,40.82,133.13,133.12,16.12404382]
[1750549550215,50.82,133.13,133.1,26.0]
[1750549550539,50.82,133.13,133.11,16.12404382]
[1750549551040,50.82,133.13,133.12,7.51201923]
[1750549551220,11.5067,133.18,133.14,26.0]
[1750549551422,10.0,133.16,133.14,42.12404382]
[1750549552248,40.8,133.15,133.14,26.0]
[1750549552410,10.0,133.19,133.15,26.0]
[1750549552741,40.78,133.18,133.16,16.12404382]
[1750549553317,10.0,133.19,133.17,7.50919876]
[1750549553536,40.76,133.18,133.17,7.50919876]
[1750549553744,50.76,133.18,133.17,7.50919876]
[1750549554726,66.88404382,133.18,133.17,7.50919876]
[1750549555219,50.76,133.18,133.17,7.50919876]
[1750549555415,40.76,133.18,133.16,42.40782436]
[1750549555628,10.0,133.17,133.16,26.28378054]
[1750549556317,10.0,133.15,133.14,7.51089079]
[1750549556535,50.74,133.15,133.14,7.51089079]
[1750549557657,10.0,133.17,133.16,26.0]
[1750549557951,50.7,133.17,133.16,42.12404382]
[1750549558146,40.7,133.17,133.16,42.12404382]
[1750549558315,40.7,133.17,133.16,26.0]
[1750549558515,50.7,133.17,133.16,42.12404382]
[1750549558737,50.7,133.17,133.16,49.63380651]
[1750549558922,50.7,133.17,133.16,33.50976269]
[1750549559127,50.7,133.17,133.16,49.63380651]
[1750549559552,50.7,133.17,133.16,33.50976269]
[1750549559725,40.7,133.17,133.16,49.63380651]
[1750549559926,40.7,133.17,133.16,33.50976269]
[1750549560339,23.62,133.21,133.16,68.40821323]
[1750549560546,10.0,133.2,133.19,16.12404382]
[1750549560761,1.6167893,133.23,133.22,26.0]
[1750549560925,1.6167893,133.23,133.22,42.12404382]
[1750549561124,10.0,133.22,133.2,26.27627626]
[1750549561343,10.0,133.21,133.17,18.77185506]
[1750549561646,10.0,133.22,133.2,26.0]
[1750549561944,27.74083312,133.23,133.2,26.0]
[1750549562256,50.62,133.21,133.2,26.0]
[1750549562753,66.74404382,133.21,133.2,33.5075075]
[1750549562942,50.62,133.21,133.2,7.5075075]
[1750549563152,50.62,133.21,133.17,34.89589888]
[1750549563153,10.0,133.2,133.18,7.50863493]
[1750549563348,10.0,133.19,133.18,7.50863493]
[1750549564658,50.6,133.19,133.18,7.50863493]
[1750549565229,40.58,133.19,133.18,7.50863493]
[1750549565454,50.58,133.19,133.18,7.50863493]
[1750549565633,40.58,133.19,133.18,7.50863493]
[1750549566027,50.58,133.19,133.18,7.50863493]
[1750549566835,66.70404382,133.19,133.18,7.50863493]
[1750549567027,66.70404382,133.19,133.17,52.28105382]
[1750549567028,50.58,133.19,133.17,52.28105382]
[1750549567355,10.0,133.18,133.17,52.28105382]
[1750549567731,10.0,133.19,133.17,52.28105382]
[1750549568027,1.6167893,133.23,133.17,52.28105382]
[1750549568028,1.6167893,133.23,133.2,26.0]
[1750549568359,50.54,133.22,133.2,26.0]
[1750549568539,10.0,133.21,133.2,26.0]
[1750549569155,10.0,133.21,133.2,33.5075075]
[1750549569345,11.6167893,133.23,133.2,49.63155132]
[1750549569550,50.52,133.21,133.2,52.27627626]
[1750549570351,50.52,133.21,133.2,68.40032008]
[1750549570730,40.52,133.21,133.2,68.40032008]
[1750549571051,16.6477,133.29,133.21,18.64964886]
[1750549571349,10.0,133.27,133.24,16.12404382]
[1750549571556,10.0,133.24,133.22,52.27233147]
[1750549571762,40.48,133.23,133.22,68.39637529]
[1750549572265,40.48,133.23,133.22,79.9282774]
[1750549573356,40.48,133.23,133.22,63.80423358]
[1750549573572,50.48,133.23,133.22,7.50638042]
[1750549573740,66.60404382,133.23,133.22,7.50638042]
[1750549574139,10.0,133.16,133.12,26.2920673]
[1750549574439,10.0,133.13,133.12,7.51201923]
[1750549574644,10.0,133.1,133.09,18.78360014]
[1750549574946,10.0,133.1,133.01,26.31381098]
[1750549574947,10.0,133.02,133.01,26.31381098]
[1750549575152,50.42,133.02,133.01,7.51823171]
[1750549575464,10.0,132.99,132.97,100.43273627]
[1750549575692,50.42,132.98,132.97,100.43273627]
[1750549575831,10.0,132.98,132.97,81.63289076]
[1750549576330,50.42,132.98,132.97,81.63289076]
[1750549576760,50.42,132.98,132.96,7.52095286]
[1750549576761,10.0,132.97,132.96,7.52095286]
[1750549576960,10.0,132.95,132.89,18.81137506]
[1750549577144,40.44,132.94,132.92,26.0]
[1750549577458,10.0,133.02,132.94,26.32766661]
[1750549577639,40.44,133.01,132.97,26.0]
[1750549577839,23.85977176,132.98,132.97,26.0]
[1750549578068,23.85977176,133.04,132.94,26.32766661]
[1750549578069,10.0,133.0,132.94,26.32766661]
[1750549578269,10.0,132.95,132.85,7.52728641]
[1750549578442,8.209,132.97,132.85,7.52728641]
[1750549578443,10.0,132.89,132.85,7.52728641]
[1750549578647,26.0,132.91,132.85,7.52728641]
[1750549578648,10.0,132.86,132.85,26.17693527]
[1750549578852,10.0,132.8,132.71,7.53522718]
[1750549579169,6.6477,132.83,132.71,7.53522718]
[1750549579170,10.0,132.72,132.71,7.53522718]
[1750549579462,10.0,132.74,132.71,7.53522718]
[1750549579635,8.209,132.83,132.71,7.53522718]
[1750549579636,10.0,132.72,132.71,7.53522718]
[1750549579831,42.54,132.72,132.71,7.53522718]
[1750549580033,10.0,132.7,132.69,15.86939133]
[1750549580230,10.0,132.7,132.69,1.66673333]
[1750549580463,10.0,132.65,132.62,23.85977176]
[1750549580642,10.0,132.65,132.61,39.15147981]
[1750549580849,55.64,132.64,132.61,39.15147981]
[1750549581048,26.0,132.72,132.61,39.15147981]
[1750549581049,10.0,132.62,132.61,20.29920623]
[1750549581250,56.68,132.62,132.61,12.7582968]
[1750549581436,47.3,132.62,132.61,12.7582968]
[1750549581639,10.0,132.62,132.61,12.7582968]
[1750549581889,81.15977176,132.62,132.61,12.7582968]
[1750549582177,57.3,132.62,132.61,12.7582968]
[1750549582334,10.0,132.6,132.57,9.1596558]
[1750549582535,10.0,132.6,132.59,26.0]
[1750549582772,10.0,132.61,132.57,9.1596558]
[1750549583137,10.0,132.61,132.6,26.0]
[1750549583364,10.0,132.59,132.57,9.1596558]
[1750549583659,57.94,132.58,132.57,9.1596558]
[1750549584190,47.94,132.58,132.57,35.1596558]
[1750549584383,47.94,132.58,132.57,9.1596558]
[1750549584544,10.0,132.63,132.59,26.0]
[1750549584739,23.85977176,132.72,132.61,23.85977176]
[1750549584740,10.0,132.66,132.61,23.85977176]
[1750549584940,48.74,132.65,132.6,26.0]
[1750549585146,10.0,132.7,132.6,26.0]
[1750549585358,48.86,132.69,132.68,23.85977176]
[1750549585745,23.85977176,132.74,132.67,33.53749905]
[1750549585746,10.0,132.74,132.7,26.0]
[1750549585945,10.0,132.68,132.67,7.53749905]
[1750549586168,48.98,132.68,132.67,7.53749905]
[1750549586371,10.0,132.71,132.7,26.0]
[1750549586571,10.0,132.76,132.7,26.0]
[1750549586747,10.0,132.73,132.7,26.0]
[1750549586945,49.36,132.75,132.7,26.0]
[1750549587147,49.36,132.75,132.74,23.85977176]
[1750549587452,11.87443018,132.77,132.75,7.53295668]
[1750549587672,59.42,132.76,132.75,31.39272844]
[1750549587878,11.87443018,132.77,132.75,31.39272844]
[1750549588179,11.87443018,132.77,132.75,7.53295668]
[1750549588180,59.42,132.76,132.75,7.53295668]
[1750549588474,59.54,132.76,132.75,7.53295668]
[1750549588986,83.4756355,132.76,132.75,7.53295668]
[1750549589285,59.54,132.76,132.75,7.53295668]
[1750549589601,10.0,132.74,132.73,25.78559206]
[1750549589754,49.54,132.76,132.75,26.0]
[1750549589960,49.62,132.76,132.75,51.78559206]
[1750549590172,11.87443018,132.77,132.76,18.64964886]
[1750549590377,11.87443018,132.77,132.72,44.62128585]
[1750549590378,71.49443018,132.77,132.73,26.0]
[1750549590585,61.49443018,132.77,132.76,44.64964886]
[1750549590790,59.62,132.77,132.76,51.78559206]
[1750549590995,59.62,132.77,132.76,70.43524092]
[1750549590996,49.62,132.77,132.76,70.43524092]
[1750549591498,59.62,132.77,132.76,59.31798133]
[1750549591669,59.62,132.77,132.76,33.53238927]
[1750549591868,59.62,132.77,132.76,59.31798133]
[1750549592081,59.62,132.77,132.76,7.53238927]
[1750549592288,49.62,132.77,132.76,33.31798133]
[1750549592588,49.62,132.77,132.76,51.96763019]
[1750549592785,59.62,132.77,132.76,7.53238927]
[1750549592971,59.62,132.77,132.76,33.31798133]
[1750549593364,49.62,132.77,132.76,33.31798133]
[1750549593578,49.62,132.77,132.7,75.35795026]
[1750549593579,51.2646,132.77,132.59,69.71548413]
[1750549593767,10.0,132.65,132.59,31.87473369]
[1750549593962,10.0,132.6,132.57,1.6167893]
[1750549594166,50.34,132.59,132.57,1.6167893]
[1750549594371,10.0,132.58,132.57,1.6167893]
[1750549594886,60.52,132.58,132.57,1.6167893]
[1750549595056,50.52,132.58,132.57,1.6167893]
[1750549595261,10.0,132.6,132.57,34.94556609]
[1750549595484,10.0,132.66,132.6,7.54147812]
[1750549595686,50.56,132.65,132.6,52.39517344]
[1750549595985,50.56,132.65,132.64,25.78559206]
[1750549596226,50.56,132.65,132.6,52.39517344]
[1750549596379,50.56,132.65,132.64,25.78559206]
[1750549596580,50.5,132.65,132.64,25.78559206]
[1750549597406,50.5,132.65,132.64,33.32479592]
[1750549597591,10.71010733,132.71,132.67,26.0]
[1750549597791,25.78559206,132.75,132.67,26.0]
[1750549597792,50.5,132.7,132.67,26.0]
[1750549597995,10.0,132.73,132.69,25.78559206]
[1750549598203,10.07779171,132.8,132.67,26.0]
[1750549598204,50.44,132.72,132.67,26.0]
[1750549598411,50.44,132.72,132.71,25.78559206]
[1750549598712,10.0,132.76,132.7,26.0]
[1750549598925,10.07779171,132.8,132.78,26.0]
[1750549599096,10.0,132.86,132.79,25.78559206]
[1750549599412,60.72,132.85,132.84,7.52785305]
[1750549599585,10.0,132.81,132.65,26.0]
[1750549599793,10.0,132.75,132.73,37.66992442]
[1750549599991,10.0,132.73,132.65,18.84658876]
[1750549600206,10.0,132.71,132.65,18.84658876]
[1750549600518,10.0,132.7,132.69,25.78559206]
[1750549600696,50.76,132.74,132.65,18.84658876]
[1750549600697,10.0,132.67,132.65,56.53976629]
[1750549601021,60.8,132.66,132.65,56.53976629]
[1750549601396,50.8,132.66,132.65,56.53976629]
[1750549601598,60.8,132.66,132.65,64.07840179]
[1750549601797,50.8,132.66,132.65,26.38522426]
[1750549602008,60.8,132.66,132.65,26.38522426]
[1750549602593,10.0,132.73,132.68,26.0]
[1750549602792,10.11311223,132.78,132.65,26.38522426]
[1750549602793,10.0,132.69,132.65,127.77157932]
[1750549603014,10.0,132.7,132.65,127.77157932]
[1750549603217,26.0,132.77,132.72,26.0]
[1750549603218,10.0,132.77,132.72,26.0]
[1750549603398,51.12,132.76,132.75,25.78559206]
[1750549603598,3.528,132.8,132.76,18.64964886]
[1750549603808,13.528,132.8,132.79,25.78559206]
[1750549604008,54.628,132.8,132.76,18.64964886]
[1750549605009,3.528,132.8,132.79,44.64964886]
[1750549605205,54.608,132.8,132.79,44.64964886]
[1750549605405,54.628,132.8,132.79,70.43524092]
[1750549605618,10.0,132.89,132.8,18.64964886]
[1750549605824,10.0,132.89,132.87,25.78559206]
[1750549606035,10.0,132.87,132.86,25.78559206]
[1750549606333,10.0,132.87,132.84,18.64964886]
[1750549606530,10.0,132.85,132.79,64.01084417]
[1750549606737,10.0,132.83,132.81,25.78559206]
[1750549606920,10.0,132.81,132.79,64.01084417]
[1750549607107,10.0,132.86,132.8,18.64964886]
[1750549607309,10.0,132.8,132.79,7.53068755]
[1750549607520,10.0,132.84,132.79,25.78559206]
[1750549607735,10.0,132.82,132.81,25.78559206]
[1750549607938,10.0,132.84,132.81,25.78559206]
[1750549608132,10.0,132.84,132.83,25.78559206]
[1750549608332,10.0,132.89,132.83,25.78559206]
[1750549608643,10.0,132.9,132.87,25.78559206]
[1750549608944,10.0,132.88,132.87,25.78559206]
[1750549609246,10.0,132.88,132.81,44.64964886]
[1750549609550,10.0,132.89,132.87,7.52615338]
[1750549609736,10.0,132.88,132.87,7.52615338]
[1750549610045,10.0,132.88,132.87,33.31174544]
[1750549610244,10.0,132.88,132.87,7.52615338]
[1750549610745,10.0,132.91,132.87,52.12712889]
[1750549610918,10.0,132.91,132.9,25.78559206]
[1750549611236,10.0,132.91,132.9,26.0]
[1750549611433,10.0,132.95,132.91,44.64964886]
[1750549611737,10.0,132.95,132.93,33.30834839]
[1750549612035,10.0,132.94,132.93,7.52275633]
[1750549612221,10.0,132.99,132.96,26.0]
[1750549612423,10.0,132.97,132.96,44.64964886]
[1750549612736,10.0,133.03,132.96,51.78559206]
[1750549612937,10.0,133.04,133.01,25.78559206]
[1750549613112,9.72323403,133.08,132.96,26.0]
[1750549613113,10.0,133.01,133.0,26.0]
[1750549613313,10.0,133.06,133.0,26.0]
[1750549613523,10.0,133.08,133.0,26.0]
[1750549613717,7.5102503,133.16,132.97,25.09194886]
[1750549613718,10.0,133.16,133.07,26.0]
[1750549613919,10.0,133.16,133.01,44.96345984]
[1750549613920,10.0,133.09,133.08,44.64964886]
[1750549614138,10.0,133.1,133.01,63.90496953]
[1750549614320,10.0,133.06,133.02,18.64964886]
[1750549614522,10.0,133.06,133.05,44.43524092]
[1750549614741,10.0,133.03,133.01,63.90496953]
[1750549614921,10.0,133.03,133.02,18.64964886]
[1750549615114,26.0,133.08,133.01,26.31381098]
[1750549615115,10.0,133.02,133.01,26.31381098]
[1750549615322,10.0,132.94,132.83,22.581859]
[1750549615519,35.78559206,132.97,132.77,6.4423]
[1750549615823,10.0,132.97,132.94,25.78559206]
[1750549616014,10.0,132.97,132.84,44.44106894]
[1750549616220,10.0,132.97,132.96,44.43524092]
[1750549616639,10.0,132.98,132.96,44.43524092]
[1750549616831,10.0,133.01,132.97,25.78559206]
[1750549617037,10.0,133.01,132.86,63.36528755]
[1750549617038,10.0,133.02,132.99,25.78559206]
[1750549617344,10.0,133.0,132.98,25.78559206]
[1750549617643,10.0,132.99,132.98,25.78559206]
[1750549617845,10.0,132.98,132.97,18.64964886]
[1750549618049,10.0,132.98,132.97,44.43524092]
[1750549618429,10.0,132.99,132.97,44.43524092]
[1750549618634,10.0,133.02,132.99,18.64964886]
[1750549618945,10.0,133.02,133.01,44.43524092]
[1750549619143,10.0,133.06,133.02,18.64964886]
[1750549619442,10.0,133.06,133.04,25.78559206]
[1750549619616,10.0,133.08,133.05,7.51597143]
[1750549619814,104.8228,133.14,133.05,7.51597143]
[1750549619815,10.0,133.07,133.06,25.78559206]
[1750549620049,10.0,133.01,132.97,7.52049334]
[1750549620244,10.0,133.06,133.01,18.64964886]
[1750549620447,10.0,133.09,133.05,25.78559206]
[1750549620652,10.0,133.01,132.98,18.7993672]
[1750549620857,10.0,133.01,132.84,44.44106894]
[1750549620858,10.0,132.91,132.87,7.52615338]